bitfinex-derivatives/quotes_BTCF0:USTF0_20250805
["timestamp","ask_amount","ask_price","bid_price","bid_amount"]
[1754412941347,0.68417283,113220.0,113210.0,2.40748982]
[1754412941554,0.68417283,113220.0,113210.0,2.23075592]
[1754412941852,0.68417283,113220.0,113210.0,2.21291592]
[1754412942052,0.68417283,113220.0,113210.0,2.38960982]
[1754412942552,0.68417283,113220.0,113210.0,1.59435592]
[1754412942754,0.68417283,113220.0,113210.0,2.21291592]
[1754412942941,0.68417283,113220.0,113210.0,2.21287592]
[1754412943554,1.1565021,113220.0,113210.0,1.55560592]
[1754412943749,1.1565021,113220.0,113210.0,2.17412592]
[1754412944456,0.68417283,113220.0,113210.0,2.21287592]
[1754412944751,0.68417283,113220.0,113210.0,1.94997592]
[1754412945653,1.1565021,113220.0,113210.0,1.94997592]
[1754412945954,1.1565021,113220.0,113210.0,1.33145592]
[1754412946252,1.1565021,113220.0,113210.0,1.94997592]
[1754412947253,1.1565021,113220.0,113210.0,1.29270592]
[1754412947450,1.1565021,113220.0,113210.0,1.91122592]
[1754412948746,1.1565021,113220.0,113210.0,1.91118592]
[1754412948951,1.1565021,113220.0,113210.0,1.22132]
[1754412949149,0.1766939,113210.0,113200.0,0.03879]
[1754412949352,1.1555176,113210.0,113200.0,4e-05]
[1754412949554,1.1555176,113210.0,113200.0,0.61852]
[1754412950763,1.1555176,113210.0,113200.0,0.66881]
[1754412951062,1.1555176,113210.0,113200.0,0.66981]
[1754412951251,1.1555176,113210.0,113200.0,0.61952]
[1754412951558,1.1555176,113210.0,113200.0,0.62052]
[1754412952451,1.1575176,113210.0,113200.0,0.61852]
[1754412953554,0.1767252,113190.0,113180.0,0.31204]
[1754412953751,1.4442189,113190.0,113180.0,0.70446]
[1754412953960,1.5191189,113190.0,113180.0,0.7223]
[1754412954558,1.04678963,113190.0,113180.0,0.7223]
[1754412954755,1.04678963,113190.0,113180.0,0.9000408]
[1754412955557,1.04678963,113190.0,113180.0,0.90895993]
[1754412955758,1.04678963,113190.0,113180.0,0.89111993]
[1754412956069,1.04678963,113190.0,113180.0,0.9000408]
[1754412957361,1.0240652,113190.0,113180.0,0.9010408]
[1754412958659,1.0240652,113190.0,113180.0,0.971735]
[1754412959059,1.04682518,113190.0,113180.0,0.953895]
[1754412959460,1.04682518,113190.0,113180.0,0.7026242]
[1754412959660,1.04682518,113190.0,113180.0,0.7394642]
[1754412959956,1.04682518,113190.0,113180.0,0.7553042]
[1754412960150,1.04682518,113190.0,113180.0,0.932045]
[1754412960350,1.04682518,113190.0,113180.0,0.953895]
[1754412960855,1.04682518,113190.0,113180.0,0.971735]
[1754412961361,1.0240652,113190.0,113180.0,0.971735]
[1754412962861,1.0240652,113190.0,113180.0,0.7771542]
[1754412963954,1.49639447,113190.0,113180.0,0.0841442]
[1754412964156,1.49639447,113190.0,113180.0,0.7394242]
[1754412964358,1.0240652,113190.0,113180.0,0.7771142]
[1754412964557,1.0240652,113190.0,113180.0,0.953855]
[1754412964863,1.0240652,113190.0,113180.0,0.7771142]
[1754412965861,1.0240652,113190.0,113180.0,0.953855]
[1754412966064,1.0240652,113190.0,113180.0,0.7771142]
[1754412967663,1.49639447,113190.0,113180.0,0.7025842]
[1754412968064,1.49639447,113190.0,113180.0,0.7394242]
[1754412968767,1.49639447,113190.0,113180.0,0.7771142]
[1754412970672,1.0240652,113190.0,113180.0,0.9716949]
[1754412970968,0.9730352,113190.0,113180.0,1.44402417]
[1754412971160,1.0065952,113190.0,113180.0,1.44402417]
[1754412971360,1.0240652,113190.0,113180.0,1.44402417]
[1754412971964,1.0240652,113190.0,113180.0,1.44402427]
[1754412972272,1.0240652,113190.0,113180.0,0.971695]
[1754412973370,1.04685336,113190.0,113180.0,1.44402427]
[1754412973760,1.04685336,113190.0,113180.0,0.971695]
[1754412974164,0.96123336,113190.0,113180.0,1.44402427]
[1754412974373,0.58418336,113190.0,113180.0,1.44402427]
[1754412974564,0.56031336,113190.0,113180.0,1.44402427]
[1754412974765,0.5375252,113190.0,113180.0,1.44402427]
[1754412975471,0.5375251,113190.0,113180.0,1.44402427]
[1754412976972,0.5613951,113190.0,113180.0,1.44402427]
[1754412977173,0.5613951,113190.0,113180.0,1.70692427]
[1754412977772,0.58424584,113190.0,113180.0,1.70692427]
[1754412978775,0.68611584,113190.0,113180.0,0.598315]
[1754412978973,1.04691584,113190.0,113180.0,1.2165549]
[1754412979770,1.04691584,113190.0,113180.0,1.2343949]
[1754412981679,1.04691584,113190.0,113180.0,1.2165549]
[1754412982181,1.04691584,113190.0,113180.0,1.2343949]
[1754412982774,1.04691584,113190.0,113180.0,1.2165549]
[1754412982980,1.04691584,113190.0,113180.0,0.9536549]
[1754412983376,1.0240651,113190.0,113180.0,0.9536549]
[1754412984885,1.0240651,113190.0,113180.0,0.1586742]
[1754412985183,1.0240651,113190.0,113180.0,0.953575]
[1754412987784,1.0240651,113190.0,113180.0,0.7768342]
[1754412987985,1.0240651,113190.0,113180.0,0.953575]
[1754412988686,0.9784751,113190.0,113180.0,1.44374427]
[1754412988881,0.9221951,113190.0,113180.0,1.44374427]
[1754412989180,0.9942651,113190.0,113180.0,1.44374427]
[1754412989486,1.0231251,113190.0,113180.0,1.44374427]
[1754412990187,1.0231251,113190.0,113180.0,0.971415]
[1754412990387,1.0231251,113190.0,113180.0,0.953575]
[1754412991986,1.0231251,113190.0,113180.0,0.971415]
[1754412992690,1.0231251,113190.0,113180.0,1.44374427]
[1754412993581,0.5976887,113200.0,113190.0,0.1767251]
[1754412993795,0.8620777,113200.0,113190.0,0.75240437]
[1754412994188,0.8009177,113200.0,113190.0,0.75240437]
[1754412994389,0.7567377,113200.0,113190.0,0.75240437]
[1754412994787,0.7806777,113200.0,113190.0,1.01630437]
[1754412995091,0.7816777,113200.0,113190.0,1.01630437]
[1754412995985,0.19898,113200.0,113190.0,1.01630437]
[1754412996187,0.1572,113200.0,113190.0,2.06322164]
[1754412996393,0.38474,113220.0,113210.0,0.2041138]
[1754412996690,0.5614026,113230.0,113220.0,0.2040982]
[1754412996990,0.02394,113230.0,113220.0,0.67642747]
[1754412997293,0.2006027,113230.0,113220.0,0.67642747]
[1754412998292,0.3015327,113230.0,113220.0,0.67742747]
[1754412998593,0.6623327,113230.0,113220.0,0.2050982]
[1754412998796,0.6623327,113230.0,113220.0,0.67742747]
[1754412999695,0.7622127,113230.0,113220.0,0.67742747]
[1754413000186,0.7445427,113230.0,113220.0,0.67742747]
[1754413000384,0.6373427,113230.0,113220.0,0.67742747]
[1754413000791,0.6612827,113230.0,113220.0,0.67742747]
[1754413001498,0.6612828,113230.0,113220.0,1.89930747]
[1754413002191,0.48462,113230.0,113220.0,1.89930747]
[1754413002393,0.6612828,113230.0,113220.0,1.89930747]
[1754413002894,0.5614028,113230.0,113220.0,1.89930747]
[1754413006196,0.6334728,113230.0,113220.0,1.89930747]
[1754413006598,0.6623328,113230.0,113220.0,1.89930747]
[1754413006898,0.6623328,113230.0,113220.0,1.4269782]
[1754413007093,0.6623328,113230.0,113220.0,2.0446982]
[1754413007293,0.6623328,113230.0,113220.0,1.4269782]
[1754413007294,1.0231328,113230.0,113220.0,1.4269782]
[1754413007695,1.0231328,113230.0,113220.0,2.51698747]
[1754413008398,1.0231328,113230.0,113220.0,1.89930747]
[1754413008696,1.0231328,113230.0,113220.0,2.51698747]
[1754413009298,1.0231328,113230.0,113220.0,0.67742747]
[1754413009498,1.0231328,113230.0,113220.0,1.29510747]
[1754413009698,1.0231328,113230.0,113220.0,1.55800747]
[1754413012891,0.3015328,113230.0,113220.0,1.55800747]
[1754413013297,0.6623328,113230.0,113220.0,1.55800747]
[1754413013797,0.6623328,113230.0,113220.0,0.94032747]
[1754413014094,0.6623328,113230.0,113220.0,1.55892747]
[1754413014303,0.6623328,113230.0,113220.0,1.56092747]
[1754413014501,0.6623328,113230.0,113220.0,0.92676747]
[1754413014696,0.6623328,113230.0,113220.0,1.56159747]
[1754413016800,0.6623328,113230.0,113220.0,1.0892682]
[1754413017100,0.6623328,113230.0,113220.0,1.56159747]
[1754413017500,0.6623328,113230.0,113220.0,1.29865747]
[1754413017696,0.2812228,113230.0,113220.0,1.29865767]
[1754413017902,0.6420228,113230.0,113220.0,1.29865767]
[1754413018200,0.6586128,113230.0,113220.0,1.29865767]
[1754413018897,0.07235,113230.0,113220.0,1.29865767]
[1754413019198,0.5618472,113240.0,113230.0,0.2047128]
[1754413019502,0.5618472,113240.0,113230.0,0.67704207]
[1754413020001,0.5940572,113240.0,113230.0,0.68594911]
[1754413020400,0.5940572,113240.0,113230.0,0.68694911]
[1754413021701,0.6094472,113240.0,113230.0,0.68694911]
[1754413021904,0.6602972,113240.0,113230.0,0.68694911]
[1754413022201,0.6602972,113240.0,113230.0,0.80400984]
[1754413022398,0.6602972,113240.0,113230.0,0.83205984]
[1754413022598,0.68315128,113240.0,113230.0,1.30438911]
[1754413023405,0.68315128,113240.0,113230.0,1.30338911]
[1754413023703,0.68415128,113240.0,113230.0,1.30438911]
[1754413024498,0.68415128,113240.0,113230.0,1.56728911]
[1754413025606,0.68415128,113240.0,113230.0,1.09495984]
[1754413025802,0.68415128,113240.0,113230.0,0.44946984]
[1754413026002,0.68415128,113240.0,113230.0,1.0579627]
[1754413026197,0.68415128,113240.0,113230.0,0.4405627]
[1754413026403,0.68415128,113240.0,113230.0,1.0579627]
[1754413026905,0.68415128,113240.0,113230.0,0.8813]
[1754413027100,0.68415128,113240.0,113230.0,1.0579628]
[1754413027506,0.68415128,113240.0,113230.0,1.0751928]
[1754413028606,0.68415128,113240.0,113230.0,0.89853]
[1754413028900,0.68415128,113240.0,113230.0,0.2639]
[1754413029105,0.68415128,113240.0,113230.0,0.88126]
[1754413029900,0.68415128,113240.0,113230.0,0.2639]
[1754413030104,0.68415128,113240.0,113230.0,0.88126]
[1754413030305,0.68415128,113240.0,113230.0,0.61836]
[1754413031011,0.68415128,113240.0,113230.0,0.7950228]
[1754413031216,0.68415128,113240.0,113230.0,0.8230728]
[1754413034312,0.68415128,113240.0,113230.0,0.64641]
[1754413035311,0.68415128,113240.0,113230.0,0.62918]
[1754413035512,0.68415128,113240.0,113230.0,0.8058427]
[1754413036409,0.68415128,113240.0,113230.0,0.62918]
[1754413037408,1.15648055,113240.0,113230.0,0.61824]
[1754413039516,1.15648055,113240.0,113230.0,0.001]
[1754413039815,1.15648055,113240.0,113230.0,0.6182]
[1754413040010,1.15648055,113240.0,113210.0,0.02805]
[1754413040011,0.3634736,113220.0,113210.0,0.02805]
[1754413040310,1.69300295,113220.0,113210.0,0.64525]
[1754413040511,0.199194,113210.0,113200.0,0.29095]
[1754413040712,0.68319808,113210.0,113200.0,0.90815]
[1754413041018,0.68319808,113210.0,113200.0,0.64525]
[1754413041615,0.68319808,113210.0,113200.0,0.02805]
[1754413042014,0.68319808,113210.0,113200.0,0.64621]
[1754413042523,0.68319808,113210.0,113200.0,0.62898]
[1754413042814,1.16449806,113210.0,113200.0,0.001]
[1754413043014,1.16449806,113210.0,113200.0,0.61816]
[1754413043414,1.16449806,113210.0,113200.0,0.001]
[1754413043415,1.34117006,113210.0,113200.0,0.001]
[1754413043609,1.16449806,113210.0,113200.0,0.6182]
[1754413043805,1.64117006,113210.0,113200.0,0.6182]
[1754413044209,1.64317006,113210.0,113200.0,0.6172]
[1754413044512,1.64317006,113210.0,113200.0,0.6202]
[1754413044908,1.63419935,113210.0,113200.0,0.6202]
[1754413045114,0.86187008,113210.0,113200.0,0.64767]
[1754413046320,1.33419935,113210.0,113200.0,0.6202]
[1754413046619,1.33619935,113210.0,113200.0,0.6172]
[1754413047115,0.1767096,113200.0,113190.0,0.245735]
[1754413047323,0.6607896,113200.0,113190.0,0.876045]
[1754413047619,0.5778896,113200.0,113190.0,1.34937427]
[1754413047920,0.5375096,113200.0,113190.0,1.34937427]
[1754413048313,0.5375096,113200.0,113190.0,0.877045]
[1754413048516,0.5624396,113200.0,113190.0,1.34937427]
[1754413049308,0.5634396,113200.0,113190.0,1.34937427]
[1754413050421,0.3618,113200.0,113190.0,1.34937427]
[1754413050914,0.001,113200.0,113190.0,1.34937427]
[1754413051718,0.539505,113210.0,113200.0,0.2041797]
[1754413051917,0.537505,113210.0,113200.0,1.14883824]
[1754413052318,0.7286258,113220.0,113210.0,0.2041641]
[1754413052613,0.6507627,113220.0,113210.0,1.29365337]
[1754413053423,0.6517627,113220.0,113210.0,1.29365337]
[1754413054226,0.2251141,113210.0,113200.0,0.29037]
[1754413054426,0.6607741,113210.0,113200.0,0.90749]
[1754413054619,0.6607741,113210.0,113200.0,1.0841997]
[1754413054820,0.6607741,113210.0,113200.0,0.4670797]
[1754413055019,0.6607741,113210.0,113200.0,1.0841997]
[1754413055527,0.6607741,113210.0,113200.0,1.0851997]
[1754413056524,0.6607741,113210.0,113200.0,1.0871997]
[1754413056918,0.6607741,113210.0,113200.0,1.29662897]
[1754413057122,0.6949362,113220.0,113210.0,0.2041641]
[1754413057323,1.0557362,113220.0,113210.0,0.67649337]
[1754413057724,1.0894262,113220.0,113210.0,0.67649337]
[1754413058228,1.1056662,113220.0,113210.0,0.67649337]
[1754413058724,1.1056662,113220.0,113210.0,0.2041641]
[1754413059623,1.1056662,113220.0,113210.0,0.02747]
[1754413059814,1.1931862,113220.0,113210.0,0.02747]
[1754413060124,1.1931862,113220.0,113210.0,0.2041641]
[1754413060620,1.1432562,113220.0,113210.0,0.75760059]
[1754413061021,1.1769462,113220.0,113210.0,0.75760059]
[1754413061626,0.7095613,113220.0,113210.0,0.75760059]
[1754413061826,0.6941113,113220.0,113210.0,0.75760059]
[1754413062823,0.6781513,113220.0,113210.0,1.02050059]
[1754413063124,0.7049413,113220.0,113210.0,1.02150059]
[1754413065425,0.7049413,113220.0,113210.0,1.0691041]
[1754413065729,0.7049413,113220.0,113210.0,1.0681041]
[1754413065929,0.7049413,113220.0,113210.0,1.0840641]
[1754413071931,0.3441413,113220.0,113210.0,1.0840641]
[1754413072135,0.7049413,113220.0,113210.0,1.0840641]
[1754413073447,0.72757085,113220.0,113210.0,1.0840641]
[1754413074135,0.72757085,113220.0,113210.0,0.87982]
[1754413074636,0.72757085,113220.0,113210.0,0.63343]
[1754413074835,0.72757085,113220.0,113210.0,0.64445]
[1754413075739,0.72757085,113220.0,113210.0,0.8211441]
[1754413078450,0.72757085,113220.0,113210.0,0.2042241]
[1754413078746,0.71193085,113220.0,113210.0,1.29336969]
[1754413079647,0.72860085,113220.0,113210.0,0.67648969]
[1754413079943,0.72860085,113220.0,113210.0,1.29336969]
[1754413080640,0.62922085,113220.0,113210.0,1.55626969]
[1754413080845,0.58505085,113220.0,113210.0,1.55626969]
[1754413081247,0.40835955,113220.0,113210.0,1.55626969]
[1754413081440,0.58503805,113220.0,113210.0,1.55626969]
[1754413081844,0.58507578,113220.0,113210.0,1.55626969]
[1754413082041,0.58507578,113220.0,113210.0,1.29336969]
[1754413082042,0.04759728,113220.0,113210.0,1.29336969]
[1754413082250,0.2438275,113230.0,113220.0,0.2042085]
[1754413082442,0.6289775,113230.0,113220.0,0.67647409]
[1754413082641,0.2681729,113230.0,113220.0,0.67647409]
[1754413082844,0.6289729,113230.0,113220.0,0.67647409]
[1754413083045,0.2681728,113230.0,113220.0,0.67647409]
[1754413083241,0.6791528,113230.0,113220.0,0.67647409]
[1754413083441,0.7288228,113230.0,113220.0,0.67647409]
[1754413083847,0.06716,113230.0,113220.0,1.29431409]
[1754413084053,0.06716,113230.0,113220.0,2.13175409]
[1754413084250,0.2010023,113240.0,113230.0,0.2041929]
[1754413084551,0.2010023,113240.0,113230.0,0.67645849]
[1754413084741,0.5618023,113240.0,113230.0,0.67645849]
[1754413087453,0.5618023,113240.0,113230.0,0.67745849]
[1754413087654,0.02435,113240.0,113230.0,1.03925849]
[1754413088052,0.02435,113240.0,113230.0,1.03825849]
[1754413088255,0.07031,113240.0,113230.0,1.03925849]
[1754413088650,0.2469572,113240.0,113230.0,1.03925849]
[1754413089355,0.07031,113240.0,113230.0,1.03925849]
[1754413090456,0.2469572,113240.0,113230.0,0.67845849]
[1754413090649,0.2971372,113240.0,113230.0,0.67845849]
[1754413092160,0.3186972,113240.0,113230.0,0.67845849]
[1754413093563,0.07031,113240.0,113230.0,0.67845849]
[1754413094557,0.2469573,113240.0,113230.0,0.67845849]
[1754413094762,0.2812473,113240.0,113230.0,0.67845849]
[1754413094962,0.3468073,113240.0,113230.0,0.67845849]
[1754413095160,0.3468073,113240.0,113230.0,0.2061929]
[1754413095462,0.3468073,113240.0,113230.0,0.67845849]
[1754413095957,0.2841773,113240.0,113230.0,0.67845849]
[1754413096161,0.6616473,113240.0,113230.0,0.01302]
[1754413096360,1.13391289,113240.0,113230.0,0.002]
[1754413096664,1.15650823,113240.0,113230.0,0.61868]
[1754413096853,1.63313223,113240.0,113230.0,0.53368]
[1754413097060,0.2255529,113230.0,113220.0,1.22164]
[1754413097256,1.15652383,113230.0,113220.0,1.22164]
[1754413097461,1.15652383,113230.0,113220.0,1.83832]
[1754413097658,1.15652383,113230.0,113220.0,0.61668]
[1754413098261,0.2255841,113210.0,113200.0,0.85969379]
[1754413098466,0.6616941,113210.0,113200.0,1.47637379]
[1754413098668,0.6616941,113210.0,113200.0,1.0041082]
[1754413099164,0.6616941,113210.0,113200.0,0.3874282]
[1754413099366,0.3009097,113200.0,113190.0,1.2216]
[1754413099668,1.13397529,113200.0,113190.0,1.83844]
[1754413099969,1.15652225,113200.0,113190.0,1.83844]
[1754413100171,1.16542872,113200.0,113190.0,1.83844]
[1754413100472,1.15652225,113200.0,113190.0,1.83844]
[1754413101771,1.22368225,113200.0,113190.0,1.83844]
[1754413102669,1.30521968,113200.0,113190.0,1.83844]
[1754413103467,1.28267272,113200.0,113190.0,1.83844]
[1754413105072,1.28367272,113200.0,113190.0,1.83844]
[1754413106173,0.7298697,113200.0,113190.0,1.83844]
[1754413106376,1.28367272,113200.0,113190.0,1.83844]
[1754413106673,1.28367272,113200.0,113190.0,2.0151653]
[1754413106873,0.7298697,113200.0,113190.0,2.0879853]
[1754413107074,0.7298697,113200.0,113190.0,1.91126]
[1754413107282,0.7298697,113200.0,113190.0,2.0879853]
[1754413108569,0.6056697,113200.0,113190.0,2.0717953]
[1754413108775,0.6400597,113200.0,113190.0,2.64178832]
[1754413109378,0.6056697,113200.0,113190.0,2.64178832]
[1754413111974,0.6400597,113200.0,113190.0,2.0879853]
[1754413112279,0.7283397,113200.0,113190.0,2.0879853]
[1754413113378,0.6391797,113200.0,113190.0,2.64178832]
[1754413113591,0.6056697,113200.0,113190.0,2.64178832]
[1754413113977,0.6056697,113200.0,113190.0,2.02494832]
[1754413114180,0.6056697,113200.0,113190.0,2.64186832]
[1754413114476,0.6056697,113200.0,113190.0,2.0880653]
[1754413114978,0.42896,113200.0,113190.0,2.64186832]
[1754413115184,0.06816,113200.0,113190.0,2.64186832]
[1754413115684,0.2448697,113200.0,113190.0,2.64186832]
[1754413116683,0.1777097,113200.0,113190.0,2.64186832]
[1754413117184,0.1767097,113200.0,113190.0,2.64386832]
[1754413118484,0.1767097,113200.0,113190.0,2.0900653]
[1754413118786,0.1767097,113200.0,113190.0,2.64386832]
[1754413122782,0.1767097,113200.0,113190.0,2.5623894]
[1754413123586,0.7725548,113210.0,113200.0,0.2999197]
[1754413123787,0.7725548,113210.0,113200.0,0.7722438]
[1754413124087,0.8952248,113210.0,113200.0,0.7722438]
[1754413124886,0.8962248,113210.0,113200.0,0.7722438]
[1754413125088,0.8962248,113210.0,113200.0,1.0351438]
[1754413127690,0.7735548,113210.0,113200.0,1.0351438]
[1754413127990,0.8618348,113210.0,113200.0,1.0351438]
[1754413128193,0.8962248,113210.0,113200.0,1.0351438]
[1754413128685,0.5354248,113210.0,113200.0,1.0351438]
[1754413128893,0.10352,113210.0,113200.0,1.5074679]
[1754413129186,0.2802139,113210.0,113200.0,1.6053679]
[1754413130290,0.2792139,113210.0,113200.0,1.6093679]
[1754413130691,0.2792139,113210.0,113200.0,1.6073679]
[1754413130992,0.2792139,113210.0,113200.0,1.6083679]
[1754413131184,0.2792139,113210.0,113200.0,1.6073679]
[1754413132182,0.1766939,113210.0,113200.0,1.1350438]
[1754413132485,0.7106689,113220.0,113210.0,0.2970239]
[1754413132685,0.2615183,113220.0,113210.0,1.386068]
[1754413132882,0.08484,113220.0,113210.0,1.386068]
[1754413133391,0.2615183,113220.0,113210.0,1.386068]
[1754413133791,0.2625183,113220.0,113210.0,1.386068]
[1754413134395,0.08584,113220.0,113210.0,1.386068]
[1754413134893,0.2625183,113220.0,113210.0,1.386068]
[1754413135296,0.08584,113220.0,113210.0,1.386068]
[1754413135497,0.2625183,113220.0,113210.0,1.386068]
[1754413135790,0.08584,113220.0,113210.0,1.386068]
[1754413135996,0.08484,113220.0,113210.0,1.387068]
[1754413136787,0.08484,113220.0,113210.0,1.649968]
[1754413137198,0.2615183,113220.0,113210.0,1.649968]
[1754413137394,0.08484,113220.0,113210.0,1.649968]
[1754413137599,0.2615183,113220.0,113210.0,1.649968]
[1754413138394,0.08484,113220.0,113210.0,1.649968]
[1754413138698,0.08484,113220.0,113210.0,2.010768]
[1754413139601,0.08484,113220.0,113210.0,2.011768]
[1754413140305,0.01719361,113220.0,113210.0,2.011768]
[1754413142806,0.2965256,113230.0,113220.0,0.2086383]
[1754413143008,0.3703456,113230.0,113220.0,1.1301324]
[1754413144105,0.3713456,113230.0,113220.0,1.1301324]
[1754413144305,0.3872856,113230.0,113220.0,1.1301324]
[1754413144805,0.3431188,113230.0,113220.0,1.1301324]
[1754413145104,0.2825927,113230.0,113220.0,1.1301324]
[1754413145500,0.2825927,113230.0,113220.0,1.1311324]
[1754413146203,0.2825927,113230.0,113220.0,1.14013131]
[1754413146806,0.2815927,113230.0,113220.0,0.77933131]
[1754413147006,0.2815927,113230.0,113220.0,0.78033131]
[1754413147207,0.2979527,113230.0,113220.0,0.78033131]
[1754413148709,0.2979527,113230.0,113220.0,1.04323131]
[1754413151106,0.2979527,113230.0,113220.0,1.65971131]
[1754413156016,0.3608,113250.0,113220.0,1.39681131]
[1754413156222,0.3608,113250.0,113240.0,0.7693011]
[1754413156223,0.81369557,113250.0,113240.0,0.7693011]
[1754413156421,0.76953457,113250.0,113240.0,1.3856611]
[1754413156825,0.7470546,113250.0,113240.0,0.913337]
[1754413157120,0.7470546,113250.0,113240.0,1.3856611]
[1754413157714,0.7490546,113250.0,113240.0,1.3856611]
[1754413158221,0.7714521,113250.0,113240.0,1.3856611]
[1754413158423,0.7734521,113250.0,113240.0,1.3856611]
[1754413159016,0.7714521,113250.0,113240.0,1.3856611]
[1754413159221,0.7704521,113250.0,113240.0,1.3856611]
[1754413159422,0.7704521,113250.0,113240.0,1.4554909]
[1754413161725,0.8349721,113250.0,113240.0,1.4554909]
[1754413164826,0.7704521,113250.0,113240.0,1.4554909]
[1754413167026,0.7704521,113250.0,113240.0,0.9831668]
[1754413167225,0.7704521,113250.0,113240.0,1.4554909]
[1754413167831,0.8818121,113250.0,113240.0,1.4554909]
[1754413172638,0.1347575,113250.0,113240.0,1.8162909]
[1754413173030,0.1347575,113250.0,113240.0,2.288615]
[1754413173538,0.11236,113250.0,113240.0,2.288615]
[1754413174030,0.11236,113250.0,113240.0,2.290615]
[1754413174632,0.11236,113250.0,113240.0,2.288615]
[1754413174831,0.11236,113250.0,113240.0,2.290615]
[1754413176838,0.1776315,113250.0,113240.0,2.290615]
[1754413177428,0.1776315,113250.0,113240.0,1.8182909]
[1754413177632,0.1776315,113250.0,113240.0,2.290615]
[1754413177837,0.1766315,113250.0,113240.0,2.292615]
[1754413178240,0.1766315,113250.0,113240.0,2.555515]
[1754413179141,0.1766315,113250.0,113240.0,2.0831909]
[1754413180642,0.1766315,113250.0,113240.0,1.7223909]
[1754413180842,0.1766315,113250.0,113240.0,2.0831909]
[1754413181141,0.1766315,113250.0,113240.0,2.555515]
[1754413183338,0.8797316,113260.0,113250.0,0.2263615]
[1754413183538,0.8797316,113260.0,113250.0,0.7719556]
[1754413184543,0.8797316,113260.0,113250.0,0.7729556]
[1754413184743,0.8797316,113260.0,113250.0,0.7739556]
[1754413188546,0.8797316,113260.0,113250.0,0.3016315]
[1754413188746,0.09188,113260.0,113250.0,0.7739556]
[1754413189247,0.3864559,113260.0,113250.0,0.7739556]
[1754413189747,0.3864559,113260.0,113250.0,1.1347556]
[1754413191244,0.09188,113260.0,113250.0,1.1347556]
[1754413192950,0.09188,113260.0,113250.0,1.3976556]
[1754413193151,0.2684959,113260.0,113250.0,1.3976556]
[1754413193949,0.3003059,113260.0,113250.0,1.3976556]
[1754413196355,0.3852459,113260.0,113250.0,0.9253315]
[1754413196549,0.2078359,113260.0,113250.0,1.2210241]
[1754413196754,1.12649,113260.0,113250.0,0.2649]
[1754413197054,0.67652779,113260.0,113250.0,0.88066]
[1754413198052,0.67652779,113260.0,113250.0,1.0572915]
[1754413198252,0.67852779,113260.0,113250.0,1.0562915]
[1754413198452,0.67852779,113260.0,113250.0,1.0805515]
[1754413198654,0.67852779,113260.0,113250.0,1.0795515]
[1754413198851,0.68052779,113260.0,113250.0,1.1122515]
[1754413199556,0.68052779,113260.0,113250.0,1.1278215]
[1754413199751,0.68052779,113260.0,113250.0,0.5120615]
[1754413199960,0.68052779,113260.0,113250.0,1.1530015]
[1754413200155,0.68052779,113260.0,113250.0,0.8901015]
[1754413200360,0.68052779,113260.0,113250.0,0.9116415]
[1754413200555,0.68052779,113260.0,113250.0,1.3839656]
[1754413200866,0.20297779,113260.0,113250.0,1.3839656]
[1754413201066,0.004,113260.0,113250.0,1.3839656]
[1754413201267,0.5414159,113260.0,113250.0,1.3839656]
[1754413201568,0.6581659,113260.0,113250.0,1.3839656]
[1754413201960,0.6541659,113260.0,113250.0,0.9116415]
[1754413202165,0.67642566,113260.0,113250.0,1.3839656]
[1754413202464,0.67642566,113260.0,113250.0,0.9116015]
[1754413202658,0.67642566,113260.0,113250.0,0.9126015]
[1754413203167,0.67642566,113260.0,113250.0,0.9136015]
[1754413203460,0.67642566,113260.0,113250.0,0.2979215]
[1754413203762,0.67642566,113260.0,113250.0,0.9136015]
[1754413204163,0.67642566,113260.0,113250.0,0.2979215]
[1754413204362,0.67642566,113260.0,113250.0,0.9136015]
[1754413204561,0.67642566,113260.0,113250.0,0.61768]
[1754413204763,0.67642566,113260.0,113250.0,0.61764]
[1754413204963,1.14874976,113260.0,113250.0,0.61764]
[1754413205165,0.67642566,113260.0,113250.0,0.61764]
[1754413205767,0.67642566,113260.0,113250.0,0.61564]
[1754413207163,0.2403116,113250.0,113240.0,0.3616456]
[1754413207367,0.67644136,113250.0,113240.0,0.9658241]
[1754413207564,1.14876546,113250.0,113240.0,0.0698298]
[1754413207769,1.14876546,113250.0,113240.0,0.6156]
[1754413208065,0.67644136,113250.0,113240.0,1.3524813]
[1754413208469,0.67644136,113250.0,113240.0,1.3534813]
[1754413208669,0.67644136,113250.0,113240.0,1.3544813]
[1754413208868,0.60596136,113250.0,113240.0,0.7702613]
[1754413209168,0.63977136,113250.0,113240.0,1.3848613]
[1754413209365,0.66369136,113250.0,113240.0,1.3848613]
[1754413209565,0.63977136,113250.0,113240.0,1.3848613]
[1754413209765,0.63777136,113250.0,113240.0,1.3848613]
[1754413210169,0.63777136,113250.0,113240.0,1.45480451]
[1754413210369,0.63777136,113250.0,113240.0,0.98248041]
[1754413210570,0.63777136,113250.0,113240.0,1.45480451]
[1754413210869,0.63777136,113250.0,113240.0,1.71670451]
[1754413211270,0.67644136,113250.0,113240.0,1.71670451]
[1754413212069,0.67644136,113250.0,113240.0,0.35806321]
[1754413212370,0.67644136,113250.0,113240.0,0.94844321]
[1754413212766,0.67644136,113250.0,113240.0,1.14935041]
[1754413212966,0.55969136,113250.0,113240.0,1.62167451]
[1754413213266,0.67644136,113250.0,113240.0,1.66994451]
[1754413214471,0.6541816,113250.0,113240.0,1.66994451]
[1754413215970,0.6541816,113250.0,113240.0,1.19762041]
[1754413216170,0.6541816,113250.0,113240.0,1.66994451]
[1754413216371,0.67642659,113250.0,113240.0,1.66990451]
[1754413216566,0.67642659,113250.0,113240.0,1.40700451]
[1754413217070,0.67642659,113250.0,113240.0,0.81666451]
[1754413217369,0.67642659,113250.0,113240.0,1.45376451]
[1754413218570,0.55967659,113250.0,113240.0,1.45376451]
[1754413218772,0.1766316,113250.0,113240.0,1.45376451]
[1754413219871,0.1766316,113250.0,113240.0,1.45476451]
[1754413220266,0.2933816,113250.0,113240.0,1.45476451]
[1754413220471,0.2933816,113250.0,113240.0,1.45576451]
[1754413222168,0.2547116,113250.0,113240.0,1.45576451]
[1754413222367,0.2229016,113250.0,113240.0,0.98344041]
[1754413222569,0.2078516,113250.0,113240.0,1.71866451]
[1754413222768,0.1766316,113250.0,113240.0,1.71866451]
[1754413224277,0.2214416,113250.0,113240.0,1.71866451]
[1754413224576,0.2986816,113250.0,113240.0,1.71866451]
[1754413225670,0.1766316,113250.0,113240.0,1.71866451]
[1754413226480,0.2437516,113250.0,113240.0,1.71866451]
[1754413226781,0.2986816,113250.0,113240.0,1.71866451]
[1754413227875,0.2599316,113250.0,113240.0,1.71866451]
[1754413228075,0.1766316,113250.0,113240.0,1.71866451]
[1754413230173,0.2420268,113260.0,113250.0,0.2958315]
[1754413230376,0.0654,113260.0,113250.0,1.1289556]
[1754413230580,0.2420159,113260.0,113250.0,0.7681556]
[1754413230977,0.7028359,113260.0,113250.0,0.10342]